[Event "Titled Tuesday Blitz June 07 Early 2022"]
[White "Gu, Xiaobing"]
[Black "Cervantes Landeiro, Thalia"]
[WhiteFideId "8602611"]
[BlackFideId "3520498"]
[WhiteElo "2174"]
[BlackElo "2042"]
[Result "1-0"]
[Round "02"]
[TimeControl "180+1"]
[Date "2022.06.08"]
[WhiteClock "0:00:10"]
[BlackClock "0:00:13"]

1. e4 {[%clk 0:03:00]}  c5 {[%clk 0:02:59]} 2. Nf3 {[%clk 0:03:00]}  d6 {[%clk 0:02:59]} 3. Bb5+ {[%clk 0:03:00]}  Nd7 {[%clk 0:02:59]} 4. c4 {[%clk 0:02:54]}  Nf6 {[%clk 0:02:58]} 5. Nc3 {[%clk 0:02:53]}  g6 {[%clk 0:02:57]} 6. d4 {[%clk 0:02:53]}  cxd4 {[%clk 0:02:57]} 7. Nxd4 {[%clk 0:02:54]}  Bg7 {[%clk 0:02:57]} 8. O-O {[%clk 0:02:49]}  O-O {[%clk 0:02:57]} 9. Ba4 {[%clk 0:02:49]}  Nc5 {[%clk 0:02:46]} 10. Bc2 {[%clk 0:02:48]}  a5 {[%clk 0:02:47]} 11. Be3 {[%clk 0:02:46]}  Ng4 {[%clk 0:02:38]} 12. Bg5 {[%clk 0:02:44]}  h6 {[%clk 0:02:36]} 13. Bh4 {[%clk 0:02:44]}  Ne5 {[%clk 0:02:09]} 14. b3 {[%clk 0:02:42]}  a4 {[%clk 0:02:00]} 15. Rb1 {[%clk 0:02:33]}  axb3 {[%clk 0:01:59]} 16. axb3 {[%clk 0:02:33]}  Qa5 {[%clk 0:01:55]} 17. Nd5 {[%clk 0:02:31]}  e6 {[%clk 0:01:54]} 18. Ne7+ {[%clk 0:02:30]}  Kh8 {[%clk 0:01:48]} 19. b4 {[%clk 0:02:30]}  Qc7 {[%clk 0:01:36]} 20. bxc5 {[%clk 0:02:27]}  g5 {[%clk 0:01:34]} 21. cxd6 {[%clk 0:02:19]}  Qxd6 {[%clk 0:01:32]} 22. Nxc8 {[%clk 0:02:19]}  Raxc8 {[%clk 0:01:28]} 23. Bg3 {[%clk 0:02:19]}  Rxc4 {[%clk 0:01:20]} 24. Nb5 {[%clk 0:02:17]}  Qc5 {[%clk 0:01:15]} 25. Bxe5 {[%clk 0:02:05]}  Bxe5 {[%clk 0:01:14]} 26. Bd3 {[%clk 0:02:06]}  Rb4 {[%clk 0:01:09]} 27. Rxb4 {[%clk 0:02:02]}  Qxb4 {[%clk 0:01:10]} 28. Qe2 {[%clk 0:02:02]}  Rd8 {[%clk 0:01:10]} 29. g3 {[%clk 0:01:55]}  Qb3 {[%clk 0:01:04]} 30. Bc2 {[%clk 0:01:52]}  Qb2 {[%clk 0:01:02]} 31. Rb1 {[%clk 0:01:51]}  Qa2 {[%clk 0:00:59]} 32. Rd1 {[%clk 0:01:33]}  Rc8 {[%clk 0:00:58]} 33. Bd3 {[%clk 0:01:28]}  Qa4 {[%clk 0:00:52]} 34. Qh5 {[%clk 0:01:26]}  Kg7 {[%clk 0:00:51]} 35. f4 {[%clk 0:01:19]}  gxf4 {[%clk 0:00:43]} 36. Qxe5+ {[%clk 0:01:18]}  f6 {[%clk 0:00:39]} 37. Qxe6 {[%clk 0:01:18]}  Qxd1+ {[%clk 0:00:38]} 38. Bf1 {[%clk 0:01:15]}  Rc1 {[%clk 0:00:25]} 39. Qe7+ {[%clk 0:01:14]}  Kg6 {[%clk 0:00:18]} 40. Qe8+ {[%clk 0:01:14]}  Kg5 {[%clk 0:00:16]} 41. Qg8+ {[%clk 0:01:14]}  Kh5 {[%clk 0:00:16]} 42. Qf7+ {[%clk 0:01:07]}  Kg4 {[%clk 0:00:14]} 43. Qg6+ {[%clk 0:01:00]}  Kf3 {[%clk 0:00:13]} 44. Qh5+ {[%clk 0:00:47]}  Ke3 {[%clk 0:00:14]} 45. Qxd1 {[%clk 0:00:45]}  Rxd1 {[%clk 0:00:15]} 46. gxf4 {[%clk 0:00:45]}  Kxe4 {[%clk 0:00:15]} 47. Kf2 {[%clk 0:00:44]}  Kxf4 {[%clk 0:00:14]} 48. Bg2 {[%clk 0:00:39]}  Rd2+ {[%clk 0:00:14]} 49. Kf1 {[%clk 0:00:38]}  Rb2 {[%clk 0:00:14]} 50. Nc3 {[%clk 0:00:36]}  b5 {[%clk 0:00:13]} 51. Nd5+ {[%clk 0:00:34]}  Ke5 {[%clk 0:00:13]} 52. Nb6 {[%clk 0:00:33]}  Rb1+ {[%clk 0:00:13]} 53. Ke2 {[%clk 0:00:32]}  Kd4 {[%clk 0:00:13]} 54. Nd7 {[%clk 0:00:27]}  b4 {[%clk 0:00:14]} 55. Nxf6 {[%clk 0:00:27]}  Rb2+ {[%clk 0:00:14]} 56. Kf1 {[%clk 0:00:26]}  b3 {[%clk 0:00:13]} 57. Be4 {[%clk 0:00:25]}  Ra2 {[%clk 0:00:09]} 58. Bf5 {[%clk 0:00:24]}  b2 {[%clk 0:00:08]} 59. Ng4 {[%clk 0:00:25]}  Ra1+ {[%clk 0:00:07]} 60. Kg2 {[%clk 0:00:24]}  h5 {[%clk 0:00:08]} 61. Nf6 {[%clk 0:00:24]}  Ra5 {[%clk 0:00:08]} 62. Bh7 {[%clk 0:00:21]}  Ke5 {[%clk 0:00:08]} 63. Nxh5 {[%clk 0:00:20]}  Kd4 {[%clk 0:00:05]} 64. Ng3 {[%clk 0:00:20]}  Rg5 {[%clk 0:00:05]} 65. h4 {[%clk 0:00:18]}  Rg7 {[%clk 0:00:06]} 66. Bf5 {[%clk 0:00:18]}  Rf7 {[%clk 0:00:05]} 67. Bg6 {[%clk 0:00:17]}  Rf6 {[%clk 0:00:05]} 68. Bh7 {[%clk 0:00:13]}  Rh6 {[%clk 0:00:06]} 69. Nf5+ {[%clk 0:00:13]}  Ke5 {[%clk 0:00:05]} 70. Nxh6 {[%clk 0:00:13]}  Kf4 {[%clk 0:00:06]} 71. Kh3 {[%clk 0:00:10]}  Kf3 {[%clk 0:00:06]} 72. h5 {[%clk 0:00:10]}  Kf4 {[%clk 0:00:07]} 73. Kh4 {[%clk 0:00:10]}  Ke5 {[%clk 0:00:07]} 74. Ng8 {[%clk 0:00:11]}  Ke6 {[%clk 0:00:07]} 75. Kg5 {[%clk 0:00:11]}  Kf7 {[%clk 0:00:08]} 76. h6 {[%clk 0:00:11]}  Kf8 {[%clk 0:00:09]} 77. Nf6 {[%clk 0:00:10]}  Kf7 {[%clk 0:00:08]} 78. Bb1 {[%clk 0:00:10]}  Kf8 {[%clk 0:00:08]} 79. Kg6 {[%clk 0:00:10]}  Ke7 {[%clk 0:00:07]} 80. h7 {[%clk 0:00:11]}  Ke6 {[%clk 0:00:08]} 81. h8=Q {[%clk 0:00:11]}  Ke5 {[%clk 0:00:09]} 82. Qe8+ {[%clk 0:00:11]}  Kd4 {[%clk 0:00:10]} 83. Qe4+ {[%clk 0:00:10]}  Kc3 {[%clk 0:00:11]} 84. Nd5+ {[%clk 0:00:10]}  Kd2 {[%clk 0:00:12]} 85. Qd3+ {[%clk 0:00:10]}  Kc1 {[%clk 0:00:13]} 86. Qc2# {[%clk 0:00:10]} 1-0


[Site "https://www.chess.com"]

[Event "Titled Tuesday Blitz June 07 Early 2022"]
[White "Guzman, Christopher"]
[Black "Paravyan, David"]
[WhiteFideId "6405096"]
[BlackFideId "4194985"]
[WhiteElo "2244"]
[BlackElo "2569"]
[Result "1/2-1/2"]
[Round "02"]
[TimeControl "180+1"]
[Date "2022.06.07"]
[WhiteClock "0:00:20"]
[BlackClock "0:00:06"]

1. e4 {[%clk 0:03:00]}  e5 {[%clk 0:02:59]} 2. Nf3 {[%clk 0:03:00]}  Nf6 {[%clk 0:02:59]} 3. Nxe5 {[%clk 0:03:00]}  d6 {[%clk 0:03:00]} 4. Nf3 {[%clk 0:02:59]}  Nxe4 {[%clk 0:03:00]} 5. c3 {[%clk 0:02:59]}  d5 {[%clk 0:02:47]} 6. Bd3 {[%clk 0:02:58]}  Nc6 {[%clk 0:02:37]} 7. O-O {[%clk 0:02:58]}  Be7 {[%clk 0:02:37]} 8. Re1 {[%clk 0:02:58]}  O-O {[%clk 0:02:38]} 9. Bc2 {[%clk 0:02:58]}  Bg4 {[%clk 0:02:37]} 10. d3 {[%clk 0:02:52]}  Ng5 {[%clk 0:02:34]} 11. Bxg5 {[%clk 0:02:51]}  Bxg5 {[%clk 0:02:33]} 12. h3 {[%clk 0:02:52]}  Bxf3 {[%clk 0:02:31]} 13. Qxf3 {[%clk 0:02:51]}  d4 {[%clk 0:02:32]} 14. c4 {[%clk 0:02:35]}  Qd6 {[%clk 0:02:31]} 15. a3 {[%clk 0:02:32]}  Rae8 {[%clk 0:02:28]} 16. Qd1 {[%clk 0:02:31]}  a5 {[%clk 0:02:25]} 17. Rxe8 {[%clk 0:02:28]}  Rxe8 {[%clk 0:02:24]} 18. Ba4 {[%clk 0:02:28]}  Qh6 {[%clk 0:02:15]} 19. Bxc6 {[%clk 0:02:25]}  bxc6 {[%clk 0:02:13]} 20. b4 {[%clk 0:02:25]}  axb4 {[%clk 0:01:37]} 21. axb4 {[%clk 0:02:24]}  Qd6 {[%clk 0:01:38]} 22. c5 {[%clk 0:02:16]}  Qf4 {[%clk 0:01:08]} 23. Na3 {[%clk 0:01:52]}  Qd2 {[%clk 0:01:08]} 24. Qxd2 {[%clk 0:01:35]}  Bxd2 {[%clk 0:01:09]} 25. Nc2 {[%clk 0:01:35]}  Rb8 {[%clk 0:00:56]} 26. Kf1 {[%clk 0:01:25]}  Bc3 {[%clk 0:00:43]} 27. Ra7 {[%clk 0:01:16]}  Kf8 {[%clk 0:00:43]} 28. Rxc7 {[%clk 0:01:15]}  Bxb4 {[%clk 0:00:43]} 29. Nxb4 {[%clk 0:01:13]}  Rxb4 {[%clk 0:00:44]} 30. Rxc6 {[%clk 0:01:13]}  Rb2 {[%clk 0:00:34]} 31. Rd6 {[%clk 0:01:11]}  Rc2 {[%clk 0:00:34]} 32. Rxd4 {[%clk 0:01:11]}  Rxc5 {[%clk 0:00:34]} 33. Ke2 {[%clk 0:01:11]}  Rc2+ {[%clk 0:00:32]} 34. Ke3 {[%clk 0:01:10]}  h5 {[%clk 0:00:33]} 35. g4 {[%clk 0:01:08]}  hxg4 {[%clk 0:00:29]} 36. hxg4 {[%clk 0:01:08]}  Ke7 {[%clk 0:00:27]} 37. Rc4 {[%clk 0:01:04]}  Ra2 {[%clk 0:00:26]} 38. f4 {[%clk 0:01:04]}  Rg2 {[%clk 0:00:20]} 39. Kf3 {[%clk 0:01:03]}  Rg1 {[%clk 0:00:19]} 40. Rc7+ {[%clk 0:01:02]}  Kf6 {[%clk 0:00:19]} 41. g5+ {[%clk 0:01:01]}  Ke6 {[%clk 0:00:19]} 42. Rc6+ {[%clk 0:01:00]}  Kd5 {[%clk 0:00:15]} 43. Rc7 {[%clk 0:00:58]}  Ke6 {[%clk 0:00:15]} 44. Rc5 {[%clk 0:00:54]}  Rf1+ {[%clk 0:00:15]} 45. Ke4 {[%clk 0:00:53]}  Re1+ {[%clk 0:00:15]} 46. Kd4 {[%clk 0:00:54]}  Rf1 {[%clk 0:00:15]} 47. Re5+ {[%clk 0:00:53]}  Kd6 {[%clk 0:00:16]} 48. Re4 {[%clk 0:00:53]}  Rf3 {[%clk 0:00:14]} 49. Kc4 {[%clk 0:00:52]}  f5 {[%clk 0:00:14]} 50. Rd4+ {[%clk 0:00:49]}  Kc6 {[%clk 0:00:15]} 51. Kc3 {[%clk 0:00:46]}  Rf2 {[%clk 0:00:15]} 52. Ra4 {[%clk 0:00:43]}  Kb5 {[%clk 0:00:12]} 53. Rc4 {[%clk 0:00:43]}  g6 {[%clk 0:00:10]} 54. Rd4 {[%clk 0:00:37]}  Kc5 {[%clk 0:00:10]} 55. Rc4+ {[%clk 0:00:37]}  Kb5 {[%clk 0:00:10]} 56. Rb4+ {[%clk 0:00:35]}  Kc5 {[%clk 0:00:10]} 57. Ra4 {[%clk 0:00:35]}  Kb5 {[%clk 0:00:10]} 58. Rc4 {[%clk 0:00:32]}  Kb6 {[%clk 0:00:06]} 59. Kb4 {[%clk 0:00:30]}  Rb2+ {[%clk 0:00:05]} 60. Kc3 {[%clk 0:00:28]}  Rf2 {[%clk 0:00:06]} 61. Rd4 {[%clk 0:00:20]}  Kc5 {[%clk 0:00:06]} 62. Ra4 {[%clk 0:00:20]}  Kb5 {[%clk 0:00:06]} 63. Rc4 {[%clk 0:00:20]}  Kb6 {[%clk 0:00:06]} 1/2-1/2


[Site "https://www.chess.com"]

[Event "Titled Tuesday Blitz June 07 Early 2022"]
[White "Hosseinzadeh, Nima"]
[Black "Samaganova, Aleksandra"]
[WhiteFideId "12505323"]
[BlackFideId "13800221"]
[WhiteElo "2066"]
[BlackElo "1864"]
[Result "0-1"]
[Round "02"]
[TimeControl "180+1"]
[Date "2022.06.08"]
[WhiteClock "0:00:08"]
[BlackClock "0:00:06"]

1. e4 {[%clk 0:03:00]}  c5 {[%clk 0:03:00]} 2. Nf3 {[%clk 0:03:00]}  e6 {[%clk 0:03:00]} 3. d4 {[%clk 0:03:01]}  cxd4 {[%clk 0:02:57]} 4. Nxd4 {[%clk 0:03:02]}  a6 {[%clk 0:02:57]} 5. Bd3 {[%clk 0:03:02]}  Qc7 {[%clk 0:02:56]} 6. O-O {[%clk 0:03:01]}  Nf6 {[%clk 0:02:55]} 7. Qe2 {[%clk 0:02:58]}  Bc5 {[%clk 0:02:51]} 8. Nb3 {[%clk 0:02:55]}  Be7 {[%clk 0:02:50]} 9. e5 {[%clk 0:02:53]}  Nd5 {[%clk 0:02:50]} 10. a3 {[%clk 0:02:46]}  b5 {[%clk 0:02:21]} 11. a4 {[%clk 0:02:33]}  b4 {[%clk 0:02:17]} 12. N1d2 {[%clk 0:02:32]}  Nf4 {[%clk 0:01:59]} 13. Qe4 {[%clk 0:02:31]}  Nxd3 {[%clk 0:01:59]} 14. Qxa8 {[%clk 0:02:19]}  Bb7 {[%clk 0:01:57]} 15. Qa7 {[%clk 0:02:18]}  Nf4 {[%clk 0:01:08]} 16. f3 {[%clk 0:02:06]}  Nc6 {[%clk 0:00:46]} 17. Qe3 {[%clk 0:02:01]}  Bg5 {[%clk 0:00:41]} 18. Qf2 {[%clk 0:01:52]}  Nxe5 {[%clk 0:00:30]} 19. Ne4 {[%clk 0:01:47]}  Bh6 {[%clk 0:00:23]} 20. Qc5 {[%clk 0:01:35]}  Qxc5+ {[%clk 0:00:16]} 21. Nbxc5 {[%clk 0:01:36]}  Bc8 {[%clk 0:00:09]} 22. g3 {[%clk 0:01:26]}  Ne2+ {[%clk 0:00:09]} 23. Kf2 {[%clk 0:01:20]}  Nxc1 {[%clk 0:00:09]} 24. f4 {[%clk 0:01:11]}  Ng4+ {[%clk 0:00:09]} 25. Ke1 {[%clk 0:01:00]}  d5 {[%clk 0:00:09]} 26. Nf2 {[%clk 0:00:41]}  Ne3 {[%clk 0:00:06]} 27. Rxc1 {[%clk 0:00:38]}  Nxf1 {[%clk 0:00:07]} 28. Kxf1 {[%clk 0:00:39]}  Ke7 {[%clk 0:00:06]} 29. a5 {[%clk 0:00:37]}  Rd8 {[%clk 0:00:06]} 30. Nfd3 {[%clk 0:00:37]}  f6 {[%clk 0:00:06]} 31. Nxb4 {[%clk 0:00:36]}  Kd6 {[%clk 0:00:06]} 32. Ncxa6 {[%clk 0:00:26]}  Bxa6+ {[%clk 0:00:06]} 33. Nxa6 {[%clk 0:00:25]}  Ra8 {[%clk 0:00:07]} 34. Nb4 {[%clk 0:00:26]}  Rxa5 {[%clk 0:00:07]} 35. Rd1 {[%clk 0:00:18]}  e5 {[%clk 0:00:07]} 36. fxe5+ {[%clk 0:00:16]}  fxe5 {[%clk 0:00:07]} 37. c4 {[%clk 0:00:15]}  d4 {[%clk 0:00:08]} 38. Ke2 {[%clk 0:00:15]}  Ra4 {[%clk 0:00:07]} 39. Nd3 {[%clk 0:00:06]}  Rxc4 {[%clk 0:00:06]} 40. Kf3 {[%clk 0:00:06]}  Kd5 {[%clk 0:00:05]} 41. Nf2 {[%clk 0:00:03]}  Rc2 {[%clk 0:00:04]} 42. b4 {[%clk 0:00:03]}  Kc4 {[%clk 0:00:03]} 43. Ne4 {[%clk 0:00:03]}  Rb2 {[%clk 0:00:02]} 44. Re1 {[%clk 0:00:02]}  Rb3+ {[%clk 0:00:02]} 45. Kg2 {[%clk 0:00:02]}  Re3 {[%clk 0:00:03]} 46. Rxe3 {[%clk 0:00:02]}  Bxe3 {[%clk 0:00:04]} 47. Kf3 {[%clk 0:00:02]}  Kxb4 {[%clk 0:00:04]} 48. Nd6 {[%clk 0:00:01]}  Kc3 {[%clk 0:00:04]} 49. Ke4 {[%clk 0:00:01]}  Bg1 {[%clk 0:00:04]} 50. Nb5+ {[%clk 0:00:01]}  Kd2 {[%clk 0:00:04]} 51. Nc7 {[%clk 0:00:01]}  Bxh2 {[%clk 0:00:04]} 52. Kxe5 {[%clk 0:00:01]}  d3 {[%clk 0:00:04]} 53. Ke4 {[%clk 0:00:02]}  Ke2 {[%clk 0:00:04]} 54. Nd5 {[%clk 0:00:02]}  d2 {[%clk 0:00:05]} 55. Nc3+ {[%clk 0:00:03]}  Ke1 {[%clk 0:00:05]} 56. Kf3 {[%clk 0:00:03]}  d1=Q+ {[%clk 0:00:05]} 57. Nxd1 {[%clk 0:00:03]}  Kxd1 {[%clk 0:00:06]} 58. g4 {[%clk 0:00:04]}  Be5 {[%clk 0:00:06]} 59. g5 {[%clk 0:00:04]}  Bc3 {[%clk 0:00:06]} 60. Kg4 {[%clk 0:00:04]}  Ke2 {[%clk 0:00:06]} 61. Kh5 {[%clk 0:00:02]}  Kf3 {[%clk 0:00:06]} 62. Kh4 {[%clk 0:00:02]}  Kf4 {[%clk 0:00:07]} 63. Kh5 {[%clk 0:00:02]}  Kf5 {[%clk 0:00:07]} 64. Kh4 {[%clk 0:00:02]}  Kg6 {[%clk 0:00:07]} 65. Kg4 {[%clk 0:00:02]}  Bd2 {[%clk 0:00:08]} 66. Kh3 {[%clk 0:00:02]}  Bxg5 {[%clk 0:00:09]} 67. Kg4 {[%clk 0:00:03]}  Bf6 {[%clk 0:00:09]} 68. Kh3 {[%clk 0:00:04]}  Kg5 {[%clk 0:00:09]} 69. Kg2 {[%clk 0:00:05]}  Kg4 {[%clk 0:00:10]} 70. Kh2 {[%clk 0:00:05]}  Be5+ {[%clk 0:00:10]} 71. Kg2 {[%clk 0:00:06]}  g5 {[%clk 0:00:10]} 72. Kh1 {[%clk 0:00:07]}  Kh3 {[%clk 0:00:08]} 73. Kg1 {[%clk 0:00:08]}  g4 {[%clk 0:00:08]} 74. Kh1 {[%clk 0:00:07]}  g3 {[%clk 0:00:08]} 75. Kg1 {[%clk 0:00:08]}  Bd4+ {[%clk 0:00:07]} 76. Kf1 {[%clk 0:00:08]}  g2+ {[%clk 0:00:06]} 0-1


[Site "https://www.chess.com"]

[Event "Titled Tuesday Blitz June 07 Early 2022"]
[White "Janaszak, Dawid"]
[Black "Andreikin, Dmitry"]
[WhiteFideId "1119206"]
[BlackFideId "4158814"]
[WhiteElo "2199"]
[BlackElo "2736"]
[Result "0-1"]
[Round "02"]
[TimeControl "180+1"]
[Date "2022.06.07"]
[WhiteClock "0:00:18"]
[BlackClock "0:01:58"]

1. e4 {[%clk 0:03:00]}  c5 {[%clk 0:02:59]} 2. Nc3 {[%clk 0:03:00]}  a6 {[%clk 0:02:59]} 3. d4 {[%clk 0:02:58]}  cxd4 {[%clk 0:02:58]} 4. Qxd4 {[%clk 0:02:59]}  Nc6 {[%clk 0:02:59]} 5. Qd2 {[%clk 0:02:58]}  e6 {[%clk 0:02:57]} 6. b3 {[%clk 0:02:55]}  Nf6 {[%clk 0:02:57]} 7. Bb2 {[%clk 0:02:55]}  Bb4 {[%clk 0:02:55]} 8. Bd3 {[%clk 0:02:50]}  d5 {[%clk 0:02:55]} 9. exd5 {[%clk 0:02:49]}  exd5 {[%clk 0:02:56]} 10. a3 {[%clk 0:02:45]}  Ba5 {[%clk 0:02:56]} 11. b4 {[%clk 0:02:39]}  Bc7 {[%clk 0:02:56]} 12. Nge2 {[%clk 0:02:23]}  O-O {[%clk 0:02:55]} 13. O-O {[%clk 0:02:17]}  d4 {[%clk 0:02:41]} 14. Ne4 {[%clk 0:02:12]}  Nxe4 {[%clk 0:02:37]} 15. Bxe4 {[%clk 0:02:11]}  Bxh2+ {[%clk 0:02:36]} 16. Kxh2 {[%clk 0:02:11]}  Qh4+ {[%clk 0:02:37]} 17. Kg1 {[%clk 0:02:12]}  Qxe4 {[%clk 0:02:38]} 18. Nxd4 {[%clk 0:02:09]}  Nxd4 {[%clk 0:02:36]} 19. Qxd4 {[%clk 0:02:10]}  Qg6 {[%clk 0:02:34]} 20. Rfe1 {[%clk 0:01:41]}  Bf5 {[%clk 0:02:34]} 21. Re3 {[%clk 0:01:28]}  Rfd8 {[%clk 0:02:34]} 22. Qe5 {[%clk 0:01:27]}  f6 {[%clk 0:02:29]} 23. Qc7 {[%clk 0:01:25]}  Rd7 {[%clk 0:02:28]} 24. Qc4+ {[%clk 0:01:25]}  Qf7 {[%clk 0:02:26]} 25. Qxf7+ {[%clk 0:01:22]}  Kxf7 {[%clk 0:02:27]} 26. c4 {[%clk 0:01:13]}  Rad8 {[%clk 0:02:25]} 27. Rae1 {[%clk 0:01:07]}  h5 {[%clk 0:02:25]} 28. f3 {[%clk 0:00:59]}  h4 {[%clk 0:02:24]} 29. c5 {[%clk 0:00:55]}  Kg6 {[%clk 0:02:23]} 30. Re7 {[%clk 0:00:53]}  Rd2 {[%clk 0:02:08]} 31. R1e2 {[%clk 0:00:45]}  Rxe2 {[%clk 0:02:02]} 32. Rxe2 {[%clk 0:00:46]}  Rd1+ {[%clk 0:02:02]} 33. Kf2 {[%clk 0:00:45]}  Bd3 {[%clk 0:02:01]} 34. Re7 {[%clk 0:00:34]}  Rf1+ {[%clk 0:02:02]} 35. Ke3 {[%clk 0:00:34]}  Re1+ {[%clk 0:02:02]} 36. Kxd3 {[%clk 0:00:31]}  Rxe7 {[%clk 0:02:03]} 37. a4 {[%clk 0:00:30]}  Kf5 {[%clk 0:02:03]} 38. b5 {[%clk 0:00:29]}  axb5 {[%clk 0:02:04]} 39. axb5 {[%clk 0:00:30]}  Kf4 {[%clk 0:02:01]} 40. Kc4 {[%clk 0:00:24]}  Kg3 {[%clk 0:02:00]} 41. c6 {[%clk 0:00:22]}  bxc6 {[%clk 0:02:00]} 42. bxc6 {[%clk 0:00:19]}  Kxg2 {[%clk 0:01:59]} 43. Ba3 {[%clk 0:00:19]}  Rc7 {[%clk 0:01:59]} 44. Kd5 {[%clk 0:00:19]}  h3 {[%clk 0:01:58]} 45. Bd6 {[%clk 0:00:18]}  Rc8 {[%clk 0:01:59]} 46. c7 {[%clk 0:00:18]}  Kxf3 {[%clk 0:01:57]} 47. Kc6 {[%clk 0:00:18]}  g5 {[%clk 0:01:57]} 48. Kd7 {[%clk 0:00:18]}  Rxc7+ {[%clk 0:01:57]} 49. Kxc7 {[%clk 0:00:18]}  g4 {[%clk 0:01:58]} 0-1


[Site "https://www.chess.com"]

[Event "Titled Tuesday Blitz June 07 Early 2022"]
[White "Kobo, Ori"]
[Black "Golubev, Mikhail"]
[WhiteFideId "2812320"]
[BlackFideId "14100983"]
[WhiteElo "2420"]
[BlackElo "2374"]
[Result "0-1"]
[Round "02"]
[TimeControl "180+1"]
[Date "2022.06.07"]
[WhiteClock "0:00:04"]
[BlackClock "0:00:13"]

1. d4 {[%clk 0:03:00]}  Nf6 {[%clk 0:02:57]} 2. g3 {[%clk 0:03:00]}  g6 {[%clk 0:02:56]} 3. Bg2 {[%clk 0:03:01]}  Bg7 {[%clk 0:02:56]} 4. e4 {[%clk 0:03:01]}  d6 {[%clk 0:02:56]} 5. Ne2 {[%clk 0:03:01]}  O-O {[%clk 0:02:56]} 6. Nbc3 {[%clk 0:03:01]}  e5 {[%clk 0:02:51]} 7. O-O {[%clk 0:03:01]}  Nbd7 {[%clk 0:02:47]} 8. h3 {[%clk 0:02:56]}  Re8 {[%clk 0:02:46]} 9. Re1 {[%clk 0:02:53]}  exd4 {[%clk 0:02:39]} 10. Nxd4 {[%clk 0:02:53]}  Nc5 {[%clk 0:02:39]} 11. Bf4 {[%clk 0:02:37]}  Bd7 {[%clk 0:02:32]} 12. Qd2 {[%clk 0:02:34]}  Rb8 {[%clk 0:02:23]} 13. a4 {[%clk 0:02:20]}  a5 {[%clk 0:02:13]} 14. Ndb5 {[%clk 0:02:15]}  Bc6 {[%clk 0:02:04]} 15. Bg5 {[%clk 0:01:47]}  Qd7 {[%clk 0:01:40]} 16. Bxf6 {[%clk 0:01:17]}  Bxf6 {[%clk 0:01:39]} 17. b3 {[%clk 0:00:56]}  Bxb5 {[%clk 0:01:30]} 18. axb5 {[%clk 0:00:54]}  Bxc3 {[%clk 0:01:09]} 19. Qxc3 {[%clk 0:00:54]}  b6 {[%clk 0:01:08]} 20. Qc4 {[%clk 0:00:44]}  Qe7 {[%clk 0:01:03]} 21. f4 {[%clk 0:00:37]}  Qf6 {[%clk 0:01:03]} 22. Rad1 {[%clk 0:00:35]}  Re7 {[%clk 0:01:02]} 23. c3 {[%clk 0:00:24]}  Rbe8 {[%clk 0:01:01]} 24. b4 {[%clk 0:00:24]}  axb4 {[%clk 0:00:39]} 25. cxb4 {[%clk 0:00:25]}  Ne6 {[%clk 0:00:39]} 26. e5 {[%clk 0:00:21]}  dxe5 {[%clk 0:00:37]} 27. Bc6 {[%clk 0:00:21]}  Nd4 {[%clk 0:00:27]} 28. Bxe8 {[%clk 0:00:11]}  Nf3+ {[%clk 0:00:26]} 29. Kg2 {[%clk 0:00:05]}  Nxe1+ {[%clk 0:00:27]} 30. Rxe1 {[%clk 0:00:06]}  Rxe8 {[%clk 0:00:27]} 31. Qxc7 {[%clk 0:00:06]}  e4 {[%clk 0:00:24]} 32. Qc6 {[%clk 0:00:07]}  Qb2+ {[%clk 0:00:24]} 33. Kf1 {[%clk 0:00:05]}  Re6 {[%clk 0:00:23]} 34. Qa8+ {[%clk 0:00:03]}  Kg7 {[%clk 0:00:23]} 35. Qa1 {[%clk 0:00:03]}  Qxa1 {[%clk 0:00:22]} 36. Rxa1 {[%clk 0:00:04]}  Rd6 {[%clk 0:00:20]} 37. Ke2 {[%clk 0:00:02]}  Rd4 {[%clk 0:00:19]} 38. Ra6 {[%clk 0:00:02]}  Rxb4 {[%clk 0:00:19]} 39. Rxb6 {[%clk 0:00:03]}  Rb3 {[%clk 0:00:18]} 40. Kf2 {[%clk 0:00:02]}  h5 {[%clk 0:00:17]} 41. Rb7 {[%clk 0:00:03]}  Rf3+ {[%clk 0:00:17]} 42. Kg2 {[%clk 0:00:03]}  Rb3 {[%clk 0:00:17]} 43. b6 {[%clk 0:00:03]}  Rb2+ {[%clk 0:00:16]} 44. Kf1 {[%clk 0:00:03]}  e3 {[%clk 0:00:17]} 45. h4 {[%clk 0:00:03]}  Kf6 {[%clk 0:00:15]} 46. Ke1 {[%clk 0:00:04]}  Kf5 {[%clk 0:00:13]} 47. Rxf7+ {[%clk 0:00:03]}  Ke4 {[%clk 0:00:13]} 48. b7 {[%clk 0:00:02]}  Kf3 {[%clk 0:00:14]} 49. Kd1 {[%clk 0:00:02]}  e2+ {[%clk 0:00:13]} 50. Kc1 {[%clk 0:00:02]}  Rxb7 {[%clk 0:00:12]} 51. Rxb7 {[%clk 0:00:02]}  e1=Q+ {[%clk 0:00:13]} 52. Kb2 {[%clk 0:00:03]}  Qd2+ {[%clk 0:00:13]} 53. Ka3 {[%clk 0:00:03]}  Qc3+ {[%clk 0:00:13]} 54. Rb3 {[%clk 0:00:03]}  Qxb3+ {[%clk 0:00:12]} 55. Kxb3 {[%clk 0:00:04]}  Kxg3 {[%clk 0:00:12]} 56. f5 {[%clk 0:00:04]}  gxf5 {[%clk 0:00:13]} 0-1


[Site "https://www.chess.com"]